fUSD/lending_fUSD_20240523
["ID","MTS","AMOUNT","RATE_DAILY","PERIOD"]
[327765298,1716450638335,-348.67,0.000137,2]
[327765299,1716450638344,-450.54,0.00013973,2]
[327765300,1716450638356,-155.9,0.00013973,2]
[327765301,1716450638365,-203.99,0.00013973,2]
[327765302,1716450638378,-158.35,0.00013973,2]
[327765303,1716450638387,-1000.0,0.00014,2]
[327765304,1716450638396,-150.0,0.00014,2]
[327765305,1716450638405,-415.79,0.00014,2]
[327765306,1716450638415,-352.06,0.00014,2]
[327765307,1716450638424,-415.79,0.00014,2]
[327765308,1716450638433,-151.31,0.00014,2]
[327765309,1716450638441,-2000.0,0.00014053,3]
[327765310,1716450638451,-3562.97,0.00014053,2]
[327765311,1716450638460,-8698.56,0.00014079,2]
[327765312,1716450638469,-587.83,0.000141,2]
[327765313,1716450638477,-150.0,0.000141,2]
[327765314,1716450638486,-269.71,0.000141,2]
[327765315,1716450638496,-415.79,0.000141,2]
[327765316,1716450638505,-250.0,0.00014124,2]
[327765317,1716450638514,-280.0,0.00014299,2]
[327765318,1716450638524,-200.0,0.00014361,2]
[327765319,1716450638534,-500.0,0.00014367,2]
[327765320,1716450638543,-163.85,0.00014373,2]
[327765321,1716450638553,-524.39,0.00014402,2]
[327765322,1716450638562,-524.28,0.00014402,2]
[327765323,1716450638571,-524.28,0.00014402,2]
[327765324,1716450638580,-840.0,0.00014407,2]
[327765325,1716450638589,-10000.0,0.00014433,2]
[327765326,1716450638599,-180.74659826,0.00014567,2]
[327765327,1716450638608,-527.37,0.00014712,2]
[327765328,1716450638617,-8698.56,0.00014783,2]
[327765329,1716450638630,-974.0,0.00014822,2]
[327765330,1716450638639,-1401.0,0.00014822,2]
[327765331,1716450638648,-1263.0,0.00014822,2]
[327765332,1716450638657,-1644.0,0.00014822,2]
[327765333,1716450638666,-617.001,0.00014822,2]
[327765334,1716450638675,-1226.0,0.00014822,2]
[327765335,1716450638684,-441.838,0.00014822,2]
[327765336,1716450638693,-447.654,0.00014822,2]
[327765337,1716450638701,-814.38,0.00014822,2]
[327765338,1716450638711,-2396.0,0.00014822,2]
[327765339,1716450638721,-151.375,0.00014822,2]
[327765340,1716450638730,-165.304,0.00014822,2]
[327765341,1716450638739,-215.0,0.00014822,2]
[327765342,1716450638748,-1138.0,0.00014822,2]
[327765343,1716450638758,-1649.0,0.00014822,2]
[327765344,1716450638767,-150.0,0.00014822,2]
[327765345,1716450638776,-2551.74791409,0.00014822,2]
[327765346,1716450638802,-611.25208591,0.00014822,2]
[327765347,1716450638812,-250.0,0.00014842,2]
[327765348,1716450638821,-289.0,0.00014842,2]
[327765349,1716450638831,-837.84620768,0.00014842,2]
[327765367,1716450639988,-1324.07974876,0.00014433,2]
[327765368,1716450640104,-3145.28711561,0.00014433,2]
[327765369,1716450640163,-5301.01197096,0.00014433,2]
[327765370,1716450640175,-229.62116467,0.00014433,2]
[327765371,1716450640185,-37066.15379232,0.00014842,2]
[327765372,1716450640195,-5135.0,0.00014842,2]
[327765373,1716450640205,-5760.0,0.00014842,2]
[327765374,1716450640214,-1509.652,0.00014842,2]
[327765375,1716450640225,-160.0,0.00014916,2]
[327765376,1716450640234,-619.11818347,0.00015,2]
[327765377,1716450640243,-1000.0,0.00015,2]
[327765378,1716450640252,-1003.0,0.00015,2]
[327765379,1716450640261,-524.39,0.0001513,2]
[327765380,1716450640270,-554.01,0.00015224,2]
[327765381,1716450640279,-1057.87,0.00015224,2]
[327765382,1716450640289,-1325.42751,0.0001537,2]
[327765383,1716450640298,-8698.56,0.00015487,2]
[327765384,1716450640307,-161.08,0.00015617,2]
[327765385,1716450640317,-391.0,0.00015729,2]
[327765386,1716450640326,-304.89,0.00015781,2]
[327765387,1716450640336,-167.0,0.00015831,2]
[327765388,1716450640345,-167.0,0.00015831,2]
[327765389,1716450640354,-167.0,0.00015831,2]
[327765390,1716450640364,-167.0,0.00015831,2]
[327765391,1716450640374,-524.28,0.00015952,2]
[327765392,1716450640386,-524.28,0.00015952,2]
[327765393,1716450640395,-1022.17,0.00015952,2]
[327765394,1716450640405,-524.28,0.00015952,2]
[327765395,1716450640415,-524.28,0.00015952,2]
[327765396,1716450640426,-524.28,0.00015952,2]
[327765397,1716450640437,-524.39,0.00015952,2]
[327765398,1716450640447,-524.28,0.00015952,2]
[327765399,1716450640457,-524.28,0.00015952,2]
[327765400,1716450640466,-524.28,0.00015952,2]
[327765401,1716450640476,-524.28,0.00015952,2]
[327765402,1716450640486,-524.28,0.00015952,2]
[327765403,1716450640495,-524.28,0.00015952,2]
[327765404,1716450640505,-524.28,0.00015952,2]
[327765405,1716450640515,-524.28,0.00015952,2]
[327765406,1716450640524,-524.28,0.00015952,2]
[327765407,1716450640534,-524.28,0.00015952,2]
[327765408,1716450640544,-524.28,0.00015952,2]
[327765409,1716450640554,-524.28,0.00015952,2]
[327765410,1716450640564,-524.28,0.00015952,2]
[327765411,1716450640573,-232.23,0.00015952,2]
[327765412,1716450640584,-495.0,0.00016,3]
[327765413,1716450640594,-150.0,0.00016178,2]
[327765414,1716450640604,-8698.56,0.00016191,2]
[327765415,1716450640614,-150.0,0.000162,2]
[327765416,1716450640623,-840.0,0.00016208,2]
[327765417,1716450640635,-180.74659826,0.00016233,2]
[327765418,1716450640647,-150.0,0.00016306,2]
[327765419,1716450640657,-150.0,0.00016412,2]
[327765420,1716450640666,-179.0,0.00016421,2]
[327765421,1716450640675,-283.726,0.00016421,2]
[327765422,1716450640684,-247.73,0.00016421,2]
[327765423,1716450640693,-150.226,0.00016421,2]
[327765424,1716450640702,-150.413,0.00016421,2]
[327765425,1716450640711,-238.133,0.00016421,2]
[327765426,1716450640720,-198.763,0.00016421,2]
[327765427,1716450640730,-1287.9,0.00016438,2]
[327765428,1716450640739,-1746.04,0.00016444,2]
[327765429,1716450640748,-619.75,0.00016444,2]
[327765430,1716450640758,-167.0,0.00016484,2]
[327765431,1716450640767,-1227.44081654,0.000165,2]
[327765432,1716450640776,-150.0,0.00016518,2]
[327765433,1716450640786,-150.0,0.00016624,2]
[327765434,1716450640795,-174.36,0.00016724,2]
[327765435,1716450640804,-344.72638458,0.00016726,2]
[327765436,1716450640813,-150.0,0.00016729,2]
[327765437,1716450640823,-1048.56,0.00016774,2]
[327765438,1716450640833,-524.28,0.00016774,2]
[327765439,1716450640842,-1047.32,0.00016774,2]
[327765440,1716450640851,-160.0,0.0001678,2]
[327765441,1716450640861,-150.0,0.00016835,2]
[327765442,1716450640871,-8698.56,0.00016895,2]
[327765443,1716450640883,-150.0,0.00016941,2]
[327765444,1716450640892,-527.37,0.00016976,2]
[327765445,1716450640901,-161.08,0.00016987,2]
[327765446,1716450640912,-5081.65664504,0.00017,2]
[327765447,1716450640921,-1000.0,0.00017,3]
[327765448,1716450640931,-150.0,0.00017047,2]
[327765449,1716450640940,-167.0,0.00017137,2]
[327765450,1716450640950,-167.0,0.00017137,2]
[327765451,1716450640960,-167.0,0.00017137,2]
[327765452,1716450640969,-150.0,0.00017153,2]
[327765453,1716450640978,-1103.15915588,0.00017225,2]
[327765454,1716450640988,-150.0,0.00017259,2]
[327765455,1716450640998,-548.0,0.00017302,2]
[327765456,1716450641007,-150.0,0.00017365,2]
[327765457,1716450641017,-150.0,0.00017471,2]
[327765458,1716450641026,-150.0,0.00017576,2]
[327765459,1716450641036,-776.0,0.000176,2]
[327765460,1716450641049,-150.0,0.00017682,2]
[327765461,1716450641060,-4016.0,0.000177,2]
[327765462,1716450641070,-150.0,0.00017788,2]
[327765463,1716450641079,-167.0,0.00017791,2]
[327765464,1716450641091,-974.0,0.00017822,2]
[327765465,1716450641101,-1401.0,0.00017822,2]
[327765466,1716450641110,-1263.0,0.00017822,2]
[327765467,1716450641120,-1644.0,0.00017822,2]
[327765468,1716450641132,-613.0,0.00017822,2]
[327765469,1716450641142,-1226.0,0.00017822,2]
[327765470,1716450641151,-439.0,0.00017822,2]
[327765471,1716450641160,-445.0,0.00017822,2]
[327765472,1716450641170,-809.0,0.00017822,2]
[327765473,1716450641179,-1478.318,0.00017822,2]
[327765474,1716450641189,-150.0,0.00017822,2]
[327765475,1716450641199,-164.0,0.00017822,2]
[327765476,1716450641208,-215.0,0.00017822,2]
[327765477,1716450641217,-1138.0,0.00017822,2]
[327765478,1716450641227,-1649.0,0.00017822,2]
[327765479,1716450641237,-150.0,0.00017822,2]
[327765480,1716450641247,-3163.0,0.00017822,2]
[327765481,1716450641256,-150.0,0.00017842,2]
[327765482,1716450641265,-289.0,0.00017842,2]
[327765483,1716450641275,-10692.82606604,0.00017842,2]
[327765484,1716450641579,-961.51875694,0.00017842,2]
[327765485,1716450641593,-26249.65517702,0.00017842,2]
[327765486,1716450641602,-5135.0,0.00017842,2]
[327765487,1716450641612,-5760.0,0.00017842,2]
[327765488,1716450641621,-1018.28711383,0.00017842,2]
[327765489,1716450641749,-447.71288617,0.00017842,2]
[327765490,1716450641759,-1325.42751,0.0001787,2]
[327765491,1716450641768,-150.0,0.00017894,2]
[327765492,1716450641778,-2834.35077904,0.00017898,2]
[327765493,1716450641787,-167.90269217,0.000179,2]
[327765494,1716450641797,-169.69831045,0.000179,2]
[327765495,1716450641806,-7500.0,0.000179,2]
[327765496,1716450641816,-180.74659826,0.000179,2]
[327765497,1716450641826,-192.05306906,0.000179,2]
[327765498,1716450641836,-989.97375103,0.000179,2]
[327765499,1716450641845,-195.92344364,0.000179,2]
[327765500,1716450641855,-349.62219603,0.000179,2]
[327765501,1716450641865,-174.36,0.00017907,2]
[327765502,1716450641875,-366.45981361,0.0001799,2]
[327765503,1716450641887,-366.45981361,0.0001799,2]
[327765504,1716450641896,-151.21,0.0001799,2]
[327765505,1716450641906,-151.21,0.0001799,2]
[327765506,1716450641915,-151.21,0.0001799,2]
[327765507,1716450641925,-151.21,0.0001799,2]
[327765508,1716450641934,-151.21,0.0001799,2]
[327765509,1716450641944,-151.21,0.0001799,2]
[327765510,1716450641953,-151.21,0.0001799,2]
[327765511,1716450641963,-263.19676114,0.00018,2]
[327765512,1716450641973,-41764.33408341,0.00018,2]
[327765533,1716450642701,-11088.24894426,0.00018,2]
[327765534,1716450642714,-174508.4478836,0.00018,2]
[327765574,1716450643347,-6505.37757438,0.00014433,2]
[327765575,1716450643358,-3494.62242562,0.00014433,2]
[327765576,1716450643367,-25946.48695834,0.00018,2]
[327765580,1716450643524,-27940.00000001,0.00018,2]
[327765581,1716450643535,-6985.584,0.00018,2]
[327765582,1716450643547,-500.0,0.00018,2]
[327765587,1716450646237,-352.06,0.000137,2]
[327765588,1716450646247,-524.28,0.00014402,2]
[327765589,1716450646256,-4832.35196538,0.00014433,2]
[327765595,1716450757145,-555.96901911,0.00013,2]
[327765596,1716450771367,157.052316,0.00031,120]
[327765597,1716450772438,157.052316,0.00031,120]
[327765598,1716450773228,157.052316,0.00031,120]
[327765599,1716450773904,157.052316,0.00031,120]
[327765600,1716450774600,157.052316,0.00031,120]
[327765601,1716450775309,157.052316,0.00031,120]
[327765602,1716450776248,157.052316,0.00031,120]
[327765603,1716450776788,157.052316,0.00031,120]
[327765604,1716450777557,157.052316,0.00031,120]
[327765605,1716450778295,157.052316,0.00031,120]
[327765606,1716450779027,157.052316,0.00031,120]
[327765607,1716450888149,300.0,0.000181,10]
[327765608,1716450916927,150.0,0.00025,30]
[327765609,1716451198741,904.71636936,0.00031,120]
[327765612,1716451526462,7197.00113738,0.00031,120]
[327765635,1716451831707,-651.25,0.00013872,2]
[327765637,1716451831717,-154.20842833,0.00013873,2]
[327765638,1716451831726,-428.01,0.00013973,2]
[327765639,1716451831737,-155.9,0.00013973,2]
[327765640,1716451831747,-548.75,0.00014163,2]
[327765641,1716451831757,-3741.096,0.00014224,2]
[327765642,1716451831766,-3689.362,0.00014408,2]
[327765643,1716451831776,-337.19158014,0.0001472,2]
[327765644,1716451831786,-200.0,0.0001472,2]
[327765645,1716451831795,-150.0,0.00014721,2]
[327765646,1716451831805,-2214.2801,0.00014722,2]
[327765647,1716451831815,-1262.9767,0.00014722,2]
[327765648,1716451831824,-3909.33790153,0.00014722,2]
[327765704,1716451837828,-266.945,0.00014722,2]
[327765705,1716451837841,-1451.9363882,0.00014722,2]
[327765706,1716451837854,-419.485,0.00014722,2]
[327765707,1716451837885,-3887.96353,0.00014722,2]
[327765708,1716451837899,-3793.98626351,0.00014722,2]
[327765709,1716451837913,-657.06347712,0.00014722,2]
[327765710,1716451837950,-50439.82243964,0.00014722,2]
[327765711,1716451837961,-18103.29,0.00014722,2]
[327765712,1716451837972,-500.0,0.00014722,2]
[327765713,1716451837983,-500.0,0.00014722,2]
[327765714,1716451837995,-10000.0,0.0001494,2]
[327765715,1716451838006,-150.228,0.00015006,2]
[327765716,1716451838016,-499.99,0.00015006,2]
[327765717,1716451838027,-974.0,0.00015322,2]
[327765718,1716451838038,-1263.0,0.00015322,2]
[327765719,1716451838049,-613.0,0.00015322,2]
[327765720,1716451838059,-1644.0,0.00015322,2]
[327765722,1716451838071,-1226.0,0.00015322,2]
[327765724,1716451838082,-439.0,0.00015322,2]
[327765725,1716451838093,-150.0,0.00015322,2]
[327765726,1716451838104,-809.0,0.00015322,2]
[327765727,1716451838115,-164.0,0.00015322,2]
[327765728,1716451838127,-445.0,0.00015322,2]
[327765729,1716451838138,-1649.0,0.00015322,2]
[327765730,1716451838149,-215.0,0.00015322,2]
[327765731,1716451838160,-1138.0,0.00015322,2]
[327765732,1716451838170,-1138.0,0.00015322,2]
[327765733,1716451838181,-3163.0,0.00015322,2]
[327765734,1716451838192,-5135.0,0.00015322,2]
[327765735,1716451838216,-27753.16540261,0.00015322,2]
[327765742,1716451843586,-8006.46309952,0.0001494,2]
[327765743,1716451843598,-198.59294457,0.0001494,2]
[327765744,1716451843608,-990.72619955,0.00015322,2]
[327765745,1716451843619,-9160.10839784,0.00015322,2]
[327765746,1716451843629,-289.0,0.00015322,2]
[327765747,1716451843638,-5760.0,0.00015322,2]
[327765748,1716451843647,-1061.0,0.00015322,2]
[327765749,1716451843657,-500.0,0.00015659,2]
[327765750,1716451843667,-12671.00098612,0.00015974,2]
[327765751,1716451843678,-5149.72901388,0.00015974,2]
[327765752,1716451843688,-215.98,0.00015995,2]
[327765753,1716451843697,-160.0,0.00016002,2]
[327765754,1716451843706,-200.0,0.00016102,2]
[327765755,1716451843716,-250.0,0.00016142,2]
[327765756,1716451843726,-170.95,0.00016148,2]
[327765757,1716451843735,-280.0,0.00016192,2]
[327765758,1716451843745,-904.0,0.00016238,2]
[327765759,1716451843756,-295.43698613,0.00016427,2]
[327765766,1716452244657,226.17,0.00031,120]
[327765768,1716452673241,1500.20276522,0.00031,120]
[327765769,1716452730451,-651.25,0.00012119,2]
[327765770,1716452730476,-209.07865618,0.0001212,2]
[327765771,1716452730500,-591.0106,0.0001222,2]
[327765772,1716452730526,-210.61,0.00013973,2]
[327765773,1716452730550,-668.99,0.00014332,2]
[327765774,1716452730574,-193.05748354,0.00014563,2]
[327765775,1716452730598,-1219.77491647,0.00014563,2]
[327765776,1716452730621,-155.62132118,0.00014564,2]
[327765777,1716452730644,-555.75,0.00014565,2]
[327765778,1716452730670,-1401.0,0.00014565,2]
[327765779,1716452730694,-1225.0,0.00014565,2]
[327765780,1716452730717,-1642.0,0.00014565,2]
[327765781,1716452730742,-1263.0,0.00014565,2]
[327765782,1716452730766,-1134.0,0.00014565,2]
[327765783,1716452730790,-790.35,0.00014565,2]
[327765784,1716452730812,-1332.779,0.00014565,2]
[327765785,1716452730836,-289.0,0.00014565,2]
[327765786,1716452730860,-5135.0,0.00014565,2]
[327765787,1716452730882,-5760.0,0.00014565,2]
[327765788,1716452730906,-37904.0,0.00014565,2]
[327765789,1716452730930,-1061.0,0.00014565,2]
[327765790,1716452730953,-500.0,0.00014722,2]
[327765791,1716452730977,-280.0,0.0001602,2]
[327765792,1716452731000,-308.52,0.00016093,2]
[327765793,1716452731024,-200.0,0.0001614,2]
[327765794,1716452731048,-4981.9,0.0001614,2]
[327765795,1716452731073,-12681.0,0.00016142,2]
[327765796,1716452731096,-250.0,0.00016165,2]
[327765797,1716452731120,-500.0,0.00016185,2]
[327765798,1716452731144,-1000.0,0.00016208,2]
[327765799,1716452731169,-150.02,0.00016262,2]
[327765800,1716452731192,-150.02,0.00016289,2]
[327765801,1716452731216,-150.02,0.00016316,2]
[327765802,1716452731239,-415.79,0.00016329,2]
[327765803,1716452731263,-150.02,0.00016343,2]
[327765804,1716452731287,-783.29624007,0.00016426,2]
[327765805,1716452731310,-9265.11420167,0.00016427,2]
[327765806,1716452731334,-861.82019,0.00016427,2]
[327765807,1716452731358,-167.0,0.00016482,2]
[327765808,1716452731381,-870.2,0.000165,2]
[327765809,1716452731605,-415.79,0.000165,2]
[327765810,1716452731631,-415.79,0.000165,2]
[327765811,1716452731655,-196.1,0.000165,2]
[327765812,1716452731683,-487.1,0.00016529,2]
[327765813,1716452731710,-668.99,0.00016596,2]
[327765814,1716452731734,-167.0,0.00016615,2]
[327765815,1716452731761,-5000.0,0.00016734,2]
[327765816,1716452731785,-5000.0,0.00016734,2]
[327765817,1716452731808,-5000.0,0.00016734,2]
[327765818,1716452731833,-5000.0,0.00016734,2]
[327765819,1716452731856,-167.0,0.00016749,2]
[327765820,1716452731880,-5081.65664504,0.00017,2]
[327765821,1716452731903,-12368.21904831,0.00017196,2]
[327765822,1716452731927,-800.0,0.00017233,2]
[327765823,1716452731950,-800.0,0.0001726,2]
[327765824,1716452731974,-800.0,0.0001726,2]
[327765825,1716452732000,-1000.0,0.00017287,2]
[327765826,1716452732025,-870.2,0.000173,2]
[327765827,1716452732049,-415.79,0.000173,2]
[327765828,1716452732074,-150.0,0.00017425,2]
[327765829,1716452732097,-150.0,0.00017425,2]
[327765830,1716452732121,-150.0,0.00017425,2]
[327765831,1716452732144,-835.74,0.00017425,2]
[327765832,1716452732168,-150.0,0.00017425,2]
[327765833,1716452732191,-433.94,0.00017425,2]
[327765834,1716452732215,-326.03,0.00017425,2]
[327765835,1716452732240,-150.0,0.00017425,2]
[327765836,1716452732264,-150.0,0.00017425,2]
[327765837,1716452732289,-352.06,0.00017425,2]
[327765838,1716452732313,-352.06,0.00017425,2]
[327765839,1716452732337,-352.06,0.00017425,2]
[327765840,1716452732361,-352.06,0.00017425,2]
[327765841,1716452732385,-352.06,0.00017425,2]
[327765842,1716452732409,-3614.0,0.000175,2]
[327765843,1716452732432,-1401.0,0.00017565,2]
[327765844,1716452732457,-1225.0,0.00017565,2]
[327765845,1716452732480,-696.527,0.00017565,2]
[327765846,1716452732503,-289.0,0.00017565,2]
[327765847,1716452732527,-5135.0,0.00017565,2]
[327765848,1716452732550,-5760.0,0.00017565,2]
[327765849,1716452732583,-31274.667,0.00017565,2]
[327765850,1716452732606,-1061.0,0.00017565,2]
[327765851,1716452732630,-391.0,0.00017622,2]
[327765852,1716452732661,-2000.0,0.000178,2]
[327765853,1716452732687,-2000.0,0.0001781,2]
[327765854,1716452732710,-174.36,0.00017817,2]
[327765855,1716452732734,-2000.0,0.0001782,2]
[327765856,1716452732763,-197.0064788,0.0001782,2]
[327765857,1716452732788,-2000.0,0.0001783,2]
[327765858,1716452732812,-3065.248217,0.0001784,2]
[327765859,1716452732838,-500.0,0.00017856,2]
[327765860,1716452732862,-200.0,0.00017856,2]
[327765861,1716452732886,-907.47593849,0.000179,2]
[327765862,1716452732910,-452.5788,0.000179,2]
[327765863,1716452732937,-7500.0,0.000179,2]
[327765864,1716452732963,-341.3672,0.000179,2]
[327765865,1716452732988,-169.69831042,0.000179,2]
[327765866,1716452733012,-1096.74805565,0.000179,2]
[327765867,1716452733036,-320.46733171,0.000179,2]
[327765868,1716452733059,-183.22990681,0.0001799,2]
[327765869,1716452733083,-151.21,0.0001799,2]
[327765870,1716452733106,-151.21,0.0001799,2]
[327765871,1716452733130,-151.21,0.0001799,2]
[327765872,1716452733153,-151.21,0.0001799,2]
[327765873,1716452733176,-326.06122758,0.00017998,2]
[327765874,1716452733201,-407.95649314,0.00017998,2]
[327765875,1716452733224,-1351.78246428,0.00017999,2]
[327765876,1716452733248,-665.94320295,0.00017999,2]
[327765877,1716452733272,-150.01,0.00017999,2]
[327765878,1716452733297,-1970.47740612,0.00017999,2]
[327765879,1716452733323,-1851691.8482182,0.00018,2]
[327765880,1716452733347,-158.51579806,0.00018,2]
[327765881,1716452733372,-1000.0,0.00018,3]
[327765882,1716452733396,-1000.0,0.00018234,2]
[327765883,1716452733420,-524.39,0.00018247,2]
[327765884,1716452733444,-524.39,0.00018247,2]
[327765885,1716452733467,-150.44,0.00018362,2]
[327765886,1716452733490,-421.02,0.00018362,2]
[327765887,1716452733513,-426.15,0.00018362,2]
[327765888,1716452733536,-316.06,0.00018362,2]
[327765889,1716452733560,-420.93,0.00018362,2]
[327765890,1716452733584,-420.93,0.00018362,2]
[327765891,1716452733607,-420.93,0.00018362,2]
[327765892,1716452733631,-421.02,0.00018362,2]
[327765893,1716452733658,-1782.0,0.000184,2]
[327765894,1716452733683,-167.0,0.00018444,2]
[327765895,1716452733713,-907.47593839,0.00018491,2]
[327765896,1716452733740,-320.46733168,0.00018713,2]
[327765897,1716452733765,-1096.7480556,0.00018757,2]
[327765898,1716452733790,-308.52,0.00018833,2]
[327765899,1716452733815,-668.99,0.0001886,2]
[327765900,1716452733839,-199.03529699,0.00019,2]
[327765901,1716452733862,-195.45333316,0.00019,2]
[327765902,1716452733887,-524.14,0.00019068,2]
[327765903,1716452733911,-524.39,0.00019068,2]
[327765904,1716452733934,-524.39,0.00019068,2]
[327765905,1716452733958,-907.47593839,0.00019082,2]
[327765906,1716452733983,-286.10276695,0.00019178,2]
[327765907,1716452734007,-168.45728757,0.00019178,2]
[327765908,1716452734032,-1000.0,0.00019178,2]
[327765909,1716452734056,-421.02,0.00019184,2]
[327765910,1716452734084,-372.0,0.00019384,2]
[327765911,1716452734268,-1000.0,0.00019433,2]
[327765912,1716452734293,-320.46733168,0.00019525,2]
[327765913,1716452734317,-276.71,0.00019549,2]
[327765914,1716452734342,-150.0,0.00019549,2]
[327765915,1716452734366,-300.0,0.00019549,2]
[327765916,1716452734390,-150.0,0.00019549,2]
[327765917,1716452734415,-1096.7480556,0.00019614,2]
[327765918,1716452734440,-907.47593839,0.00019673,2]
[327765919,1716452734465,-150.5,0.0001968,15]
[327765920,1716452734490,-150.5,0.0001969,15]
[327765921,1716452734514,-237.0,0.0001969,2]
[327765922,1716452734538,-1591.22537393,0.0002,2]
[327765933,1716452915136,1211.45,0.00025,30]
[327765950,1716453032037,-153.66,0.00013973,2]
[327765951,1716453032047,-155.79908718,0.00014271,2]
[327765952,1716453032057,-90.54091282,0.00014922,2]
[327765953,1716453032276,-2211.25208718,0.00014922,2]
[327765954,1716453032286,-990.377,0.00014922,2]
[327765955,1716453032295,-812.85320468,0.00014922,2]
[327765956,1716453032307,-530.14499983,0.00014922,2]
[327766006,1716453037944,-651.25,0.00014921,2]
[327766007,1716453037954,-58.00179549,0.00014922,2]
[327766008,1716453037964,-148.58482728,0.00014922,2]
[327766010,1716453038051,-140.41517272,0.00014922,2]
[327766011,1716453038061,-226.77453392,0.00015,2]
[327766012,1716453038208,-31.53529005,0.00015,2]
[327766013,1716453038218,-597.81,0.0001698,2]
[327766014,1716453038228,-5081.65664504,0.00017259,2]
[327766015,1716453038238,-7500.0,0.000179,2]
[327766016,1716453038247,-214.0,0.000179,2]
[327766017,1716453038257,-1401.0,0.00017922,2]
[327766018,1716453038269,-235.291,0.00017922,2]
[327766019,1716453038279,-165.81,0.00018422,2]
[327766020,1716453038288,-158.51579806,0.0001867,2]
[327766021,1716453038298,-200.0,0.00018671,2]
[327766023,1716453038307,-250.0,0.00018738,2]
[327766025,1716453038317,-952.60485541,0.0001875,2]
[327766026,1716453038329,-1596.13294536,0.0001875,2]
[327766028,1716453038338,-67.53615305,0.00018766,2]
[327766052,1716453041383,-432.46384695,0.00018766,2]
[327766053,1716453041393,-400.0,0.00018981,2]
[327766054,1716453041403,-200.34170927,0.00019244,2]
[327766087,1716453043403,-918.90012593,0.00017,2]
[327766142,1716453044726,-4162.75651911,0.00017,2]
[327766143,1716453044736,-397.46829073,0.00019244,2]
[327766144,1716453044746,-150.0,0.00019549,2]
[327766145,1716453044756,-150.0,0.00019549,2]
[327766146,1716453044771,-150.0,0.00019549,2]
[327766147,1716453044781,-150.0,0.00019549,2]
[327766148,1716453044791,-197.0064788,0.00019799,2]
[327766149,1716453044802,-685.46753475,0.00019886,2]
[327766150,1716453044812,-170.54,0.00019964,15]
[327766151,1716453044821,-150.5,0.00019974,15]
[327766152,1716453044831,-151.21,0.00019974,2]
[327766153,1716453044841,-151.21,0.00019974,2]
[327766154,1716453044852,-151.21,0.00019974,2]
[327766155,1716453044861,-151.21,0.00019974,2]
[327766156,1716453044871,-183.22990682,0.00019974,2]
[327766157,1716453044881,-157.72096276,0.00019982,2]
[327766158,1716453044891,-492.18255086,0.00019983,2]
[327766159,1716453044901,-54359.1440974,0.00019984,2]
[327766160,1716453044914,-29441.10938396,0.00019984,2]
[327766161,1716453044959,-5603.62817521,0.00019984,2]
[327766167,1716453046210,-698.36394,0.00019984,2]
[327766197,1716453319401,169.97,0.00025609,120]
[327766236,1716454232197,-651.25,0.00012891,2]
[327766239,1716454232207,-337.19158014,0.00012892,2]
[327766241,1716454232216,-337.19158014,0.00012892,2]
[327766243,1716454232226,-337.19158014,0.00012892,2]
[327766245,1716454232236,-337.19158014,0.00012894,2]